[Event "Titled Tuesday Blitz June 14 Early 2022"]
[White "Rozman, Levy"]
[Black "Morefield, Jason"]
[WhiteFideId "2039877"]
[BlackFideId "30920825"]
[WhiteElo "2376"]
[BlackElo "2171"]
[Result "1-0"]
[Round "07"]
[TimeControl "180+1"]
[Date "2022.06.14"]
[WhiteClock "0:00:05"]
[BlackClock "0:00:03"]

1. e4 {[%clk 0:03:00]}  d6 {[%clk 0:02:58]} 2. d4 {[%clk 0:02:58]}  Nf6 {[%clk 0:02:58]} 3. Nc3 {[%clk 0:02:58]}  g6 {[%clk 0:02:59]} 4. h3 {[%clk 0:02:56]}  Bg7 {[%clk 0:02:55]} 5. g4 {[%clk 0:02:55]}  c6 {[%clk 0:02:51]} 6. Bg2 {[%clk 0:02:54]}  Nbd7 {[%clk 0:02:50]} 7. Nge2 {[%clk 0:02:53]}  e5 {[%clk 0:02:49]} 8. Be3 {[%clk 0:02:52]}  O-O {[%clk 0:02:41]} 9. O-O {[%clk 0:02:38]}  Re8 {[%clk 0:02:39]} 10. f4 {[%clk 0:02:27]}  exf4 {[%clk 0:02:30]} 11. Bxf4 {[%clk 0:02:23]}  Nf8 {[%clk 0:02:16]} 12. Ng3 {[%clk 0:02:08]}  Ne6 {[%clk 0:02:05]} 13. Be3 {[%clk 0:02:05]}  d5 {[%clk 0:01:53]} 14. e5 {[%clk 0:02:02]}  Nd7 {[%clk 0:01:52]} 15. Qf3 {[%clk 0:01:46]}  f6 {[%clk 0:01:37]} 16. exf6 {[%clk 0:01:18]}  Bxf6 {[%clk 0:01:38]} 17. Qd1 {[%clk 0:01:01]}  Nb6 {[%clk 0:01:23]} 18. b3 {[%clk 0:00:54]}  Bh4 {[%clk 0:01:10]} 19. Nce2 {[%clk 0:00:49]}  Ng5 {[%clk 0:01:01]} 20. Qd2 {[%clk 0:00:45]}  Be6 {[%clk 0:00:42]} 21. Rae1 {[%clk 0:00:43]}  Ne4 {[%clk 0:00:36]} 22. Bxe4 {[%clk 0:00:33]}  dxe4 {[%clk 0:00:36]} 23. c4 {[%clk 0:00:30]}  Qd7 {[%clk 0:00:21]} 24. Bg5 {[%clk 0:00:19]}  Bxg5 {[%clk 0:00:18]} 25. Qxg5 {[%clk 0:00:20]}  Rf8 {[%clk 0:00:16]} 26. Nxe4 {[%clk 0:00:19]}  Qg7 {[%clk 0:00:10]} 27. Rf6 {[%clk 0:00:15]}  Rxf6 {[%clk 0:00:07]} 28. Nxf6+ {[%clk 0:00:15]}  Kh8 {[%clk 0:00:07]} 29. Nf4 {[%clk 0:00:13]}  Bf7 {[%clk 0:00:08]} 30. Re7 {[%clk 0:00:12]}  h6 {[%clk 0:00:05]} 31. Qe5 {[%clk 0:00:08]}  Rf8 {[%clk 0:00:03]} 32. a4 {[%clk 0:00:04]}  g5 {[%clk 0:00:02]} 33. N4h5 {[%clk 0:00:03]}  Qg6 {[%clk 0:00:01]} 34. Nd7+ {[%clk 0:00:04]}  Kg8 {[%clk 0:00:01]} 35. Nxf8 {[%clk 0:00:04]}  Kxf8 {[%clk 0:00:02]} 36. Rxb7 {[%clk 0:00:04]}  Qb1+ {[%clk 0:00:01]} 37. Kf2 {[%clk 0:00:03]}  Qc2+ {[%clk 0:00:02]} 38. Qe2 {[%clk 0:00:04]}  Qxb3 {[%clk 0:00:02]} 39. Rb8+ {[%clk 0:00:04]}  Be8 {[%clk 0:00:02]} 40. Rxe8+ {[%clk 0:00:05]}  Kf7 {[%clk 0:00:03]} 41. Qe6# {[%clk 0:00:05]} 1-0


[Site "https://www.chess.com"]

[Event "Titled Tuesday Blitz June 14 Early 2022"]
[White "Sadhwani, Raunak"]
[Black "Rodrigue-Lemieux, Shawn"]
[WhiteFideId "35093487"]
[BlackFideId "2620049"]
[WhiteElo "2616"]
[BlackElo "1763"]
[Result "1/2-1/2"]
[Round "07"]
[TimeControl "180+1"]
[Date "2022.06.14"]
[WhiteClock "0:00:05"]
[BlackClock "0:00:33"]

1. d4 {[%clk 0:03:00]}  Nf6 {[%clk 0:02:58]} 2. Nf3 {[%clk 0:03:01]}  d5 {[%clk 0:02:53]} 3. c3 {[%clk 0:03:02]}  Bf5 {[%clk 0:02:49]} 4. Qb3 {[%clk 0:03:02]}  Qc8 {[%clk 0:02:47]} 5. Bf4 {[%clk 0:03:00]}  e6 {[%clk 0:02:47]} 6. e3 {[%clk 0:03:00]}  Bd6 {[%clk 0:02:47]} 7. Nbd2 {[%clk 0:03:00]}  O-O {[%clk 0:02:46]} 8. Be2 {[%clk 0:02:58]}  Bxf4 {[%clk 0:02:44]} 9. exf4 {[%clk 0:02:59]}  c5 {[%clk 0:02:44]} 10. dxc5 {[%clk 0:03:00]}  Nbd7 {[%clk 0:02:44]} 11. O-O {[%clk 0:02:59]}  Nxc5 {[%clk 0:02:43]} 12. Qd1 {[%clk 0:02:57]}  Nd3 {[%clk 0:02:40]} 13. Bxd3 {[%clk 0:02:57]}  Bxd3 {[%clk 0:02:41]} 14. Re1 {[%clk 0:02:58]}  Bg6 {[%clk 0:02:32]} 15. Nd4 {[%clk 0:02:56]}  b5 {[%clk 0:02:26]} 16. h3 {[%clk 0:02:44]}  a5 {[%clk 0:02:23]} 17. a3 {[%clk 0:02:23]}  b4 {[%clk 0:02:22]} 18. cxb4 {[%clk 0:02:23]}  axb4 {[%clk 0:02:23]} 19. a4 {[%clk 0:02:23]}  Qc7 {[%clk 0:02:10]} 20. g3 {[%clk 0:02:18]}  Rfc8 {[%clk 0:02:11]} 21. N2f3 {[%clk 0:02:18]}  Bc2 {[%clk 0:01:59]} 22. Qd2 {[%clk 0:02:03]}  Ne4 {[%clk 0:01:41]} 23. Qxb4 {[%clk 0:02:01]}  Rcb8 {[%clk 0:01:40]} 24. Nb5 {[%clk 0:01:32]}  Qb6 {[%clk 0:01:40]} 25. Nfd4 {[%clk 0:01:21]}  Bd3 {[%clk 0:01:39]} 26. Kg2 {[%clk 0:01:19]}  Bc4 {[%clk 0:01:23]} 27. Red1 {[%clk 0:00:32]}  Be2 {[%clk 0:00:40]} 28. Re1 {[%clk 0:00:24]}  Bc4 {[%clk 0:00:41]} 29. Red1 {[%clk 0:00:17]}  Be2 {[%clk 0:00:38]} 30. Rdc1 {[%clk 0:00:18]}  Bc4 {[%clk 0:00:33]} 31. Rd1 {[%clk 0:00:05]} 1/2-1/2


[Site "https://www.chess.com"]

[Event "Titled Tuesday Blitz June 14 Early 2022"]
[White "Shirov, Alexei"]
[Black "Nakamura, Hikaru"]
[WhiteFideId "2209390"]
[BlackFideId "2016192"]
[WhiteElo "2678"]
[BlackElo "2850"]
[Result "0-1"]
[Round "07"]
[TimeControl "180+1"]
[Date "2022.06.14"]
[WhiteClock "0:00:18"]
[BlackClock "0:00:22"]

1. e4 {[%clk 0:03:00]}  c6 {[%clk 0:02:59]} 2. d4 {[%clk 0:03:00]}  d5 {[%clk 0:02:59]} 3. e5 {[%clk 0:03:00]}  Bf5 {[%clk 0:02:59]} 4. h4 {[%clk 0:02:59]}  h5 {[%clk 0:02:52]} 5. Bd3 {[%clk 0:02:59]}  Bxd3 {[%clk 0:02:52]} 6. Qxd3 {[%clk 0:02:59]}  Qa5+ {[%clk 0:02:53]} 7. Nd2 {[%clk 0:02:58]}  Qa6 {[%clk 0:02:53]} 8. e6 {[%clk 0:02:55]}  Qxd3 {[%clk 0:02:53]} 9. exf7+ {[%clk 0:02:55]}  Kxf7 {[%clk 0:02:54]} 10. cxd3 {[%clk 0:02:55]}  Nh6 {[%clk 0:02:52]} 11. Ngf3 {[%clk 0:02:51]}  Nd7 {[%clk 0:02:47]} 12. Ng5+ {[%clk 0:02:50]}  Kg8 {[%clk 0:02:45]} 13. Ndf3 {[%clk 0:02:48]}  g6 {[%clk 0:02:40]} 14. O-O {[%clk 0:02:45]}  Nf5 {[%clk 0:02:40]} 15. Re1 {[%clk 0:02:36]}  Bg7 {[%clk 0:02:40]} 16. Bf4 {[%clk 0:02:33]}  Bf6 {[%clk 0:02:34]} 17. g3 {[%clk 0:02:30]}  Re8 {[%clk 0:02:33]} 18. Be5 {[%clk 0:02:21]}  Nxe5 {[%clk 0:02:18]} 19. dxe5 {[%clk 0:02:20]}  Bxg5 {[%clk 0:02:18]} 20. Nxg5 {[%clk 0:02:19]}  Nd4 {[%clk 0:02:17]} 21. Rab1 {[%clk 0:02:09]}  Kg7 {[%clk 0:02:13]} 22. b4 {[%clk 0:02:06]}  e6 {[%clk 0:02:01]} 23. a4 {[%clk 0:02:02]}  Kf8 {[%clk 0:01:58]} 24. Kg2 {[%clk 0:01:56]}  Ke7 {[%clk 0:01:58]} 25. Rec1 {[%clk 0:01:56]}  Rc8 {[%clk 0:01:56]} 26. Nf3 {[%clk 0:01:50]}  Nf5 {[%clk 0:01:47]} 27. d4 {[%clk 0:01:46]}  Kd7 {[%clk 0:01:45]} 28. Rc3 {[%clk 0:01:41]}  Rc7 {[%clk 0:01:43]} 29. Rbc1 {[%clk 0:01:39]}  Rhc8 {[%clk 0:01:43]} 30. Rd3 {[%clk 0:01:37]}  b6 {[%clk 0:01:43]} 31. Rb3 {[%clk 0:01:31]}  Rb8 {[%clk 0:01:38]} 32. Rcc3 {[%clk 0:01:29]}  Rcb7 {[%clk 0:01:34]} 33. b5 {[%clk 0:01:28]}  Rc7 {[%clk 0:01:32]} 34. a5 {[%clk 0:01:19]}  cxb5 {[%clk 0:01:02]} 35. Rxc7+ {[%clk 0:01:19]}  Kxc7 {[%clk 0:01:03]} 36. Rxb5 {[%clk 0:01:19]}  a6 {[%clk 0:01:03]} 37. axb6+ {[%clk 0:01:17]}  Rxb6 {[%clk 0:01:04]} 38. Ra5 {[%clk 0:01:15]}  Rc6 {[%clk 0:01:05]} 39. Kh3 {[%clk 0:01:10]}  Kb6 {[%clk 0:01:05]} 40. Ra3 {[%clk 0:01:07]}  Rc2 {[%clk 0:01:03]} 41. g4 {[%clk 0:00:46]}  hxg4+ {[%clk 0:00:55]} 42. Kxg4 {[%clk 0:00:46]}  Rxf2 {[%clk 0:00:55]} 43. Rb3+ {[%clk 0:00:45]}  Kc6 {[%clk 0:00:45]} 44. Rc3+ {[%clk 0:00:45]}  Kb5 {[%clk 0:00:45]} 45. Rb3+ {[%clk 0:00:45]}  Kc4 {[%clk 0:00:43]} 46. Rb6 {[%clk 0:00:44]}  a5 {[%clk 0:00:27]} 47. Rxe6 {[%clk 0:00:31]}  Rxf3 {[%clk 0:00:24]} 48. Rc6+ {[%clk 0:00:23]}  Kd3 {[%clk 0:00:22]} 49. Rxg6 {[%clk 0:00:18]}  Ke4 {[%clk 0:00:22]} 0-1


[Site "https://www.chess.com"]

[Event "Titled Tuesday Blitz June 14 Early 2022"]
[White "Stribuk, Artiom"]
[Black "De Silva, L M S T"]
[WhiteFideId "13515659"]
[BlackFideId "9953698"]
[WhiteElo "2259"]
[BlackElo "1631"]
[Result "1-0"]
[Round "07"]
[TimeControl "180+1"]
[Date "2022.06.14"]
[WhiteClock "0:00:21"]
[BlackClock "0:00:03"]

1. d4 {[%clk 0:02:56]}  Nf6 {[%clk 0:02:58]} 2. c4 {[%clk 0:02:56]}  e6 {[%clk 0:02:58]} 3. Nc3 {[%clk 0:02:55]}  d5 {[%clk 0:02:57]} 4. cxd5 {[%clk 0:02:55]}  exd5 {[%clk 0:02:57]} 5. Bg5 {[%clk 0:02:54]}  Bb4 {[%clk 0:02:56]} 6. e3 {[%clk 0:02:53]}  Bf5 {[%clk 0:02:56]} 7. Qb3 {[%clk 0:02:30]}  Bxc3+ {[%clk 0:02:50]} 8. bxc3 {[%clk 0:02:29]}  O-O {[%clk 0:02:45]} 9. Nf3 {[%clk 0:02:23]}  Nbd7 {[%clk 0:02:46]} 10. Be2 {[%clk 0:02:15]}  c5 {[%clk 0:02:38]} 11. Qxb7 {[%clk 0:02:01]}  Qa5 {[%clk 0:02:27]} 12. O-O {[%clk 0:02:00]}  c4 {[%clk 0:02:11]} 13. Qb4 {[%clk 0:01:27]}  Qxb4 {[%clk 0:01:57]} 14. cxb4 {[%clk 0:01:28]}  Rfb8 {[%clk 0:01:57]} 15. a3 {[%clk 0:01:25]}  a5 {[%clk 0:01:57]} 16. Bf4 {[%clk 0:01:21]}  Rb7 {[%clk 0:01:54]} 17. Ne5 {[%clk 0:01:14]}  Nxe5 {[%clk 0:01:48]} 18. Bxe5 {[%clk 0:01:02]}  Nd7 {[%clk 0:01:39]} 19. Bd6 {[%clk 0:01:01]}  Ra6 {[%clk 0:01:19]} 20. Bc5 {[%clk 0:00:57]}  Nxc5 {[%clk 0:01:13]} 21. bxc5 {[%clk 0:00:53]}  Ra8 {[%clk 0:00:50]} 22. Bf3 {[%clk 0:00:53]}  Rd8 {[%clk 0:00:50]} 23. Rfc1 {[%clk 0:00:42]}  Rb2 {[%clk 0:00:43]} 24. g3 {[%clk 0:00:34]}  g5 {[%clk 0:00:37]} 25. g4 {[%clk 0:00:30]}  Be6 {[%clk 0:00:27]} 26. h3 {[%clk 0:00:28]}  Rdb8 {[%clk 0:00:26]} 27. e4 {[%clk 0:00:27]}  dxe4 {[%clk 0:00:26]} 28. Bxe4 {[%clk 0:00:28]}  Rd2 {[%clk 0:00:27]} 29. Rd1 {[%clk 0:00:23]}  Rbb2 {[%clk 0:00:25]} 30. d5 {[%clk 0:00:24]}  Bc8 {[%clk 0:00:15]} 31. d6 {[%clk 0:00:24]}  c3 {[%clk 0:00:15]} 32. c6 {[%clk 0:00:24]}  Kf8 {[%clk 0:00:04]} 33. d7 {[%clk 0:00:24]}  Bxd7 {[%clk 0:00:04]} 34. cxd7 {[%clk 0:00:24]}  Ke7 {[%clk 0:00:05]} 35. Bf5 {[%clk 0:00:22]}  Kd8 {[%clk 0:00:04]} 36. Rxd2 {[%clk 0:00:22]}  Rxd2 {[%clk 0:00:03]} 37. Rc1 {[%clk 0:00:21]}  a4 {[%clk 0:00:03]} 38. Rxc3 {[%clk 0:00:21]}  h5 {[%clk 0:00:04]} 39. gxh5 {[%clk 0:00:21]}  f6 {[%clk 0:00:05]} 40. h6 {[%clk 0:00:21]}  Ke7 {[%clk 0:00:05]} 41. h7 {[%clk 0:00:21]}  Kd6 {[%clk 0:00:03]} 1-0


[Site "https://www.chess.com"]

[Event "Titled Tuesday Blitz June 14 Early 2022"]
[White "Terry, Renato"]
[Black "Mchedlishvili, Mikheil"]
[WhiteFideId "3803457"]
[BlackFideId "13600966"]
[WhiteElo "2577"]
[BlackElo "2545"]
[Result "1-0"]
[Round "07"]
[TimeControl "180+1"]
[Date "2022.06.14"]
[WhiteClock "0:00:06"]
[BlackClock "0:00:02"]

1. d4 {[%clk 0:03:00]}  d5 {[%clk 0:02:59]} 2. Bg5 {[%clk 0:03:01]}  f6 {[%clk 0:02:57]} 3. Bf4 {[%clk 0:03:00]}  Nc6 {[%clk 0:02:55]} 4. Nf3 {[%clk 0:03:00]}  Bg4 {[%clk 0:02:53]} 5. Nbd2 {[%clk 0:02:58]}  e6 {[%clk 0:02:40]} 6. e3 {[%clk 0:02:53]}  Bd6 {[%clk 0:02:39]} 7. Bg3 {[%clk 0:02:51]}  Nge7 {[%clk 0:02:35]} 8. Be2 {[%clk 0:02:48]}  O-O {[%clk 0:02:32]} 9. c4 {[%clk 0:02:46]}  dxc4 {[%clk 0:02:17]} 10. Bxc4 {[%clk 0:02:44]}  Kh8 {[%clk 0:02:11]} 11. Qc2 {[%clk 0:02:29]}  Nb4 {[%clk 0:02:07]} 12. Qb3 {[%clk 0:02:29]}  a5 {[%clk 0:01:52]} 13. a3 {[%clk 0:02:20]}  a4 {[%clk 0:01:49]} 14. Qd1 {[%clk 0:02:18]}  Nbd5 {[%clk 0:01:47]} 15. Ne4 {[%clk 0:02:08]}  f5 {[%clk 0:01:24]} 16. Neg5 {[%clk 0:01:49]}  Qc8 {[%clk 0:01:21]} 17. Qd3 {[%clk 0:00:47]}  h6 {[%clk 0:01:18]} 18. Nh3 {[%clk 0:00:43]}  Bxh3 {[%clk 0:01:04]} 19. gxh3 {[%clk 0:00:44]}  f4 {[%clk 0:01:04]} 20. exf4 {[%clk 0:00:45]}  Bxf4 {[%clk 0:01:03]} 21. O-O {[%clk 0:00:38]}  Qd7 {[%clk 0:01:03]} 22. Rae1 {[%clk 0:00:33]}  Rf6 {[%clk 0:00:58]} 23. Kh1 {[%clk 0:00:28]}  c6 {[%clk 0:00:57]} 24. Bh4 {[%clk 0:00:25]}  g5 {[%clk 0:00:48]} 25. Bg3 {[%clk 0:00:26]}  Raf8 {[%clk 0:00:48]} 26. Ne5 {[%clk 0:00:26]}  Qe8 {[%clk 0:00:47]} 27. Ng4 {[%clk 0:00:26]}  Rg6 {[%clk 0:00:43]} 28. Qe4 {[%clk 0:00:24]}  h5 {[%clk 0:00:40]} 29. Ne5 {[%clk 0:00:22]}  Rgf6 {[%clk 0:00:40]} 30. Bd3 {[%clk 0:00:22]}  Nf5 {[%clk 0:00:36]} 31. h4 {[%clk 0:00:23]}  Rg8 {[%clk 0:00:17]} 32. Rg1 {[%clk 0:00:21]}  Bxg3 {[%clk 0:00:16]} 33. hxg3 {[%clk 0:00:15]}  g4 {[%clk 0:00:15]} 34. Re2 {[%clk 0:00:09]}  Qe7 {[%clk 0:00:16]} 35. Rge1 {[%clk 0:00:09]}  Qg7 {[%clk 0:00:16]} 36. Nc4 {[%clk 0:00:08]}  Rgf8 {[%clk 0:00:15]} 37. Kg1 {[%clk 0:00:08]}  Nfe7 {[%clk 0:00:12]} 38. Nd6 {[%clk 0:00:06]}  Nf5 {[%clk 0:00:11]} 39. Nc4 {[%clk 0:00:05]}  Qc7 {[%clk 0:00:09]} 40. Ne5 {[%clk 0:00:04]}  Qg7 {[%clk 0:00:09]} 41. Bb1 {[%clk 0:00:04]}  Nd6 {[%clk 0:00:09]} 42. Qd3 {[%clk 0:00:04]}  Nf5 {[%clk 0:00:10]} 43. Bc2 {[%clk 0:00:04]}  Nd6 {[%clk 0:00:07]} 44. Bxa4 {[%clk 0:00:04]}  Qc7 {[%clk 0:00:04]} 45. Bc2 {[%clk 0:00:05]}  Qg7 {[%clk 0:00:04]} 46. Ng6+ {[%clk 0:00:05]}  Rxg6 {[%clk 0:00:03]} 47. Qxg6 {[%clk 0:00:05]}  Qxg6 {[%clk 0:00:02]} 48. Bxg6 {[%clk 0:00:06]}  Nb5 {[%clk 0:00:02]} 49. Rd2 {[%clk 0:00:06]} 1-0


[Site "https://www.chess.com"]

[Event "Titled Tuesday Blitz June 14 Early 2022"]
[White "Andreikin, Dmitry"]
[Black "Bluebaum, Matthias"]
[WhiteFideId "4158814"]
[BlackFideId "24651516"]
[WhiteElo "2736"]
[BlackElo "2556"]
[Result "1-0"]
[Round "08"]
[TimeControl "180+1"]
[Date "2022.06.14"]
[WhiteClock "0:00:18"]
[BlackClock "0:00:06"]

1. e4 {[%clk 0:03:00]}  e5 {[%clk 0:02:59]} 2. Nf3 {[%clk 0:03:00]}  Nf6 {[%clk 0:02:59]} 3. Nxe5 {[%clk 0:03:00]}  d6 {[%clk 0:03:00]} 4. Nf3 {[%clk 0:03:00]}  Nxe4 {[%clk 0:03:00]} 5. Nc3 {[%clk 0:03:01]}  Nxc3 {[%clk 0:03:01]} 6. dxc3 {[%clk 0:03:02]}  Be7 {[%clk 0:03:01]} 7. Bf4 {[%clk 0:03:01]}  Nd7 {[%clk 0:02:58]} 8. Qd2 {[%clk 0:03:01]}  O-O {[%clk 0:02:58]} 9. O-O-O {[%clk 0:03:01]}  Nf6 {[%clk 0:02:56]} 10. Kb1 {[%clk 0:02:59]}  Bf5 {[%clk 0:02:41]} 11. Nd4 {[%clk 0:02:47]}  Bg6 {[%clk 0:02:38]} 12. Bd3 {[%clk 0:02:45]}  Qd7 {[%clk 0:02:37]} 13. h4 {[%clk 0:02:38]}  Rae8 {[%clk 0:02:29]} 14. f3 {[%clk 0:02:29]}  Bxd3 {[%clk 0:01:31]} 15. Qxd3 {[%clk 0:02:28]}  Nh5 {[%clk 0:01:31]} 16. Bg5 {[%clk 0:02:13]}  f6 {[%clk 0:01:08]} 17. Bc1 {[%clk 0:02:03]}  f5 {[%clk 0:01:08]} 18. Rde1 {[%clk 0:01:24]}  f4 {[%clk 0:00:59]} 19. Ne6 {[%clk 0:01:16]}  Rf7 {[%clk 0:00:41]} 20. Qd5 {[%clk 0:00:57]}  Ng3 {[%clk 0:00:33]} 21. Rhg1 {[%clk 0:00:58]}  c6 {[%clk 0:00:33]} 22. Qb3 {[%clk 0:00:57]}  Bxh4 {[%clk 0:00:29]} 23. Nxf4 {[%clk 0:00:51]}  d5 {[%clk 0:00:29]} 24. c4 {[%clk 0:00:45]}  Rxe1 {[%clk 0:00:21]} 25. Rxe1 {[%clk 0:00:45]}  Nh5 {[%clk 0:00:21]} 26. Rh1 {[%clk 0:00:34]}  Nxf4 {[%clk 0:00:21]} 27. Rxh4 {[%clk 0:00:35]}  Nxg2 {[%clk 0:00:21]} 28. Rd4 {[%clk 0:00:26]}  Ne1 {[%clk 0:00:20]} 29. cxd5 {[%clk 0:00:24]}  Nxf3 {[%clk 0:00:20]} 30. dxc6 {[%clk 0:00:21]}  Qxd4 {[%clk 0:00:04]} 31. cxb7 {[%clk 0:00:21]}  g5 {[%clk 0:00:05]} 32. b8=Q+ {[%clk 0:00:20]}  Kg7 {[%clk 0:00:06]} 33. a3 {[%clk 0:00:17]}  h5 {[%clk 0:00:04]} 34. Q8b4 {[%clk 0:00:15]}  Qxb4 {[%clk 0:00:03]} 35. Qxb4 {[%clk 0:00:14]}  Kg6 {[%clk 0:00:03]} 36. Qd6+ {[%clk 0:00:14]}  Rf6 {[%clk 0:00:03]} 37. Qd3+ {[%clk 0:00:14]}  Kh6 {[%clk 0:00:03]} 38. Qd8 {[%clk 0:00:14]}  Kg6 {[%clk 0:00:03]} 39. Qg8+ {[%clk 0:00:14]}  Kf5 {[%clk 0:00:04]} 40. Qh7+ {[%clk 0:00:14]}  Kg4 {[%clk 0:00:04]} 41. Qxa7 {[%clk 0:00:14]}  h4 {[%clk 0:00:04]} 42. Qd7+ {[%clk 0:00:15]}  Kg3 {[%clk 0:00:04]} 43. Qe7 {[%clk 0:00:16]}  Rf5 {[%clk 0:00:04]} 44. Qe4 {[%clk 0:00:16]}  Rf8 {[%clk 0:00:03]} 45. Qe7 {[%clk 0:00:16]}  Rf5 {[%clk 0:00:04]} 46. Qd7 {[%clk 0:00:17]}  Rf8 {[%clk 0:00:03]} 47. Qd6+ {[%clk 0:00:17]}  Rf4 {[%clk 0:00:04]} 48. Bxf4+ {[%clk 0:00:17]}  gxf4 {[%clk 0:00:05]} 49. Qg6+ {[%clk 0:00:17]}  Kf2 {[%clk 0:00:05]} 50. Qg4 {[%clk 0:00:17]}  Ke3 {[%clk 0:00:03]} 51. b4 {[%clk 0:00:16]}  Nd2+ {[%clk 0:00:03]} 52. Kc1 {[%clk 0:00:15]}  f3 {[%clk 0:00:04]} 53. Qxh4 {[%clk 0:00:15]}  Ne4 {[%clk 0:00:04]} 54. Qe1+ {[%clk 0:00:15]}  Kf4 {[%clk 0:00:04]} 55. Qxe4+ {[%clk 0:00:14]}  Kxe4 {[%clk 0:00:04]} 56. Kd2 {[%clk 0:00:15]}  Kf4 {[%clk 0:00:03]} 57. Ke1 {[%clk 0:00:15]}  Ke3 {[%clk 0:00:02]} 58. c4 {[%clk 0:00:15]}  Kd4 {[%clk 0:00:03]} 59. c5 {[%clk 0:00:16]}  Kd5 {[%clk 0:00:04]} 60. Kf2 {[%clk 0:00:16]}  Kc6 {[%clk 0:00:05]} 61. Kxf3 {[%clk 0:00:17]}  Kb5 {[%clk 0:00:06]} 62. Ke4 {[%clk 0:00:18]} 1-0


[Site "https://www.chess.com"]

[Event "Titled Tuesday Blitz June 14 Early 2022"]
[White "Bachmann, Axel"]
[Black "Aditya Mittal"]
[WhiteFideId "3700488"]
[BlackFideId "35042025"]
[WhiteElo "2587"]
[BlackElo "2303"]
[Result "1/2-1/2"]
[Round "08"]
[TimeControl "180+1"]
[Date "2022.06.14"]
[WhiteClock "0:00:01"]
[BlackClock "0:00:14"]

1. c4 {[%clk 0:02:56]}  Nf6 {[%clk 0:02:58]} 2. Nc3 {[%clk 0:02:55]}  e5 {[%clk 0:02:59]} 3. Nf3 {[%clk 0:02:53]}  Nc6 {[%clk 0:02:59]} 4. e3 {[%clk 0:02:52]}  Bb4 {[%clk 0:02:59]} 5. Qc2 {[%clk 0:02:48]}  O-O {[%clk 0:03:00]} 6. Nd5 {[%clk 0:02:46]}  Re8 {[%clk 0:03:00]} 7. Qf5 {[%clk 0:02:29]}  Be7 {[%clk 0:03:01]} 8. Nxe5 {[%clk 0:01:23]}  Nd4 {[%clk 0:02:59]} 9. Qd3 {[%clk 0:01:10]}  Nxd5 {[%clk 0:02:58]} 10. cxd5 {[%clk 0:01:05]}  Bf6 {[%clk 0:02:58]} 11. Ng4 {[%clk 0:00:21]}  d6 {[%clk 0:02:54]} 12. Nxf6+ {[%clk 0:00:21]}  Qxf6 {[%clk 0:02:55]} 13. Qc3 {[%clk 0:00:22]}  Bg4 {[%clk 0:02:14]} 14. b3 {[%clk 0:00:15]}  Nc2+ {[%clk 0:01:39]} 15. Qxc2 {[%clk 0:00:14]}  Qxa1 {[%clk 0:01:40]} 16. Bb5 {[%clk 0:00:06]}  Re7 {[%clk 0:01:36]} 17. O-O {[%clk 0:00:06]}  Qe5 {[%clk 0:01:35]} 18. f3 {[%clk 0:00:04]}  Bd7 {[%clk 0:01:29]} 19. Bxd7 {[%clk 0:00:02]}  Rxd7 {[%clk 0:01:29]} 20. e4 {[%clk 0:00:03]}  Rf8 {[%clk 0:01:25]} 21. Bb2 {[%clk 0:00:03]}  Qe7 {[%clk 0:01:23]} 22. Re1 {[%clk 0:00:03]}  f6 {[%clk 0:01:22]} 23. Qc4 {[%clk 0:00:03]}  Rc8 {[%clk 0:01:21]} 24. d4 {[%clk 0:00:03]}  Kh8 {[%clk 0:01:19]} 25. h3 {[%clk 0:00:04]}  c5 {[%clk 0:01:18]} 26. dxc6 {[%clk 0:00:05]}  Rxc6 {[%clk 0:01:17]} 27. Qd3 {[%clk 0:00:04]}  Rdc7 {[%clk 0:01:16]} 28. Re2 {[%clk 0:00:05]}  h5 {[%clk 0:01:13]} 29. d5 {[%clk 0:00:06]}  Rc5 {[%clk 0:01:08]} 30. Bd4 {[%clk 0:00:04]}  Rc1+ {[%clk 0:01:08]} 31. Kh2 {[%clk 0:00:05]}  Qf7 {[%clk 0:01:07]} 32. Qe3 {[%clk 0:00:05]}  Qg6 {[%clk 0:01:05]} 33. Qf4 {[%clk 0:00:05]}  R7c2 {[%clk 0:01:04]} 34. Rf2 {[%clk 0:00:02]}  Rxf2 {[%clk 0:00:56]} 35. Bxf2 {[%clk 0:00:02]}  Rc2 {[%clk 0:00:57]} 36. Bg3 {[%clk 0:00:03]}  Kh7 {[%clk 0:00:50]} 37. h4 {[%clk 0:00:04]}  f5 {[%clk 0:00:40]} 38. exf5 {[%clk 0:00:04]}  Qf6 {[%clk 0:00:40]} 39. a4 {[%clk 0:00:05]}  Qb2 {[%clk 0:00:37]} 40. Qg5 {[%clk 0:00:03]}  Rxg2+ {[%clk 0:00:32]} 41. Kh3 {[%clk 0:00:03]}  Qe2 {[%clk 0:00:22]} 42. Qxh5+ {[%clk 0:00:02]}  Kg8 {[%clk 0:00:23]} 43. Qg6 {[%clk 0:00:02]}  Qxf3 {[%clk 0:00:13]} 44. Qe8+ {[%clk 0:00:01]}  Kh7 {[%clk 0:00:13]} 45. Qg6+ {[%clk 0:00:02]}  Kg8 {[%clk 0:00:14]} 46. Qe8+ {[%clk 0:00:02]}  Kh7 {[%clk 0:00:14]} 47. Qg6+ {[%clk 0:00:01]}  Kg8 {[%clk 0:00:14]} 1/2-1/2


[Site "https://www.chess.com"]

[Event "Titled Tuesday Blitz June 14 Early 2022"]
[White "Borgaonkar Akshay"]
[Black "Taspinar, Yanki"]
[WhiteFideId "25639110"]
[BlackFideId "34561188"]
[WhiteElo "1660"]
[BlackElo "1518"]
[Result "0-1"]
[Round "08"]
[TimeControl "180+1"]
[Date "2022.06.14"]
[WhiteClock "0:01:00"]
[BlackClock "0:01:16"]

1. e4 {[%clk 0:02:52]}  e6 {[%clk 0:02:59]} 2. d4 {[%clk 0:02:51]}  d5 {[%clk 0:02:59]} 3. Nc3 {[%clk 0:02:51]}  Bb4 {[%clk 0:02:58]} 4. e5 {[%clk 0:02:51]}  c5 {[%clk 0:02:56]} 5. a3 {[%clk 0:02:52]}  Bxc3+ {[%clk 0:02:51]} 6. bxc3 {[%clk 0:02:53]}  Ne7 {[%clk 0:02:50]} 7. Qg4 {[%clk 0:02:53]}  Kf8 {[%clk 0:02:45]} 8. Nf3 {[%clk 0:02:45]}  Nbc6 {[%clk 0:02:44]} 9. h4 {[%clk 0:02:42]}  Bd7 {[%clk 0:02:40]} 10. h5 {[%clk 0:02:41]}  h6 {[%clk 0:02:41]} 11. Bd3 {[%clk 0:02:33]}  Rc8 {[%clk 0:02:39]} 12. Rh3 {[%clk 0:02:32]}  Nf5 {[%clk 0:02:09]} 13. Bxf5 {[%clk 0:02:21]}  exf5 {[%clk 0:02:10]} 14. Qf4 {[%clk 0:02:21]}  cxd4 {[%clk 0:02:10]} 15. cxd4 {[%clk 0:02:20]}  Be6 {[%clk 0:02:09]} 16. Bd2 {[%clk 0:02:18]}  Kg8 {[%clk 0:02:04]} 17. Nh4 {[%clk 0:02:12]}  Qd7 {[%clk 0:02:03]} 18. Rg3 {[%clk 0:02:09]}  Kh7 {[%clk 0:02:01]} 19. a4 {[%clk 0:01:51]}  a5 {[%clk 0:01:55]} 20. Raa3 {[%clk 0:01:49]}  Nb4 {[%clk 0:01:56]} 21. Bxb4 {[%clk 0:01:35]}  axb4 {[%clk 0:01:56]} 22. Ra2 {[%clk 0:01:33]}  Rc3 {[%clk 0:01:53]} 23. Rxc3 {[%clk 0:01:29]}  bxc3 {[%clk 0:01:54]} 24. Qe3 {[%clk 0:01:25]}  Rc8 {[%clk 0:01:54]} 25. Ra3 {[%clk 0:01:24]}  Qc6 {[%clk 0:01:46]} 26. Qd3 {[%clk 0:01:10]}  Qc4 {[%clk 0:01:39]} 27. Ke2 {[%clk 0:01:09]}  Qb4 {[%clk 0:01:32]} 28. Rb3 {[%clk 0:01:08]}  Qxb3 {[%clk 0:01:33]} 29. cxb3 {[%clk 0:00:59]}  c2 {[%clk 0:01:32]} 30. Nxf5 {[%clk 0:01:00]}  c1=N+ {[%clk 0:01:16]} 0-1


[Site "https://www.chess.com"]